Cogmind - Beta 15 @@@ ROGUE MODE // 2025.05.08 @ 23:03:18 Player: MadBadger Result: Self-destructed Performance ------------- Evolutions (1) 500 Regions Visited (2) 400 Robots Destroyed (19) 95 Value Destroyed (532) 532 Prototype IDs (0) 0 Alien Tech Used (0) 0 Bonus (0) 0 TOTAL SCORE: 1527 Bonus ------- None Cogmind --------- Core Integrity 206/400 Matter 282/300 Energy 100/100 System Corruption 0% Temperature Cool (6) Movement Core (400) Ox7 Location -9/Materials Parts ------- > --- POWER (1) -------- (None) > --- PROPULSION (2) --- (None) > --- UTILITY (3) ------ Large Storage Unit Structural Scanner Core Shielding > --- WEAPON (3) ------- Small Laser > --- INVENTORY (15) --- Ion Engine Aluminum Leg Aluminum Leg Aluminum Leg Aluminum Leg Medium Laser Particle Gun Beam Cannon Peak State ------------ > --- POWER ------------ Ion Engine > --- PROPULSION ------- Aluminum Leg Aluminum Leg > --- UTILITY ---------- Large Storage Unit Structural Scanner Core Shielding > --- WEAPON ----------- Beam Rifle Light Assault Rifle Heavy Assault Rifle > --- INVENTORY -------- Ion Engine Aluminum Leg Aluminum Leg Aluminum Leg Aluminum Leg Medium Laser Particle Gun Beam Cannon [Rating: 11] Favorites ----------- Power Ion Engine Engine Ion Engine Propulsion Aluminum Leg Leg Aluminum Leg Utility Core Shielding Device Structural Scanner Storage Small Storage Unit Protection Core Shielding Weapon Medium Laser Energy Gun Medium Laser Energy Cannon Beam Cannon Ballistic Gun Light Assault Rifle Build | -11 -10 -9 ------- Run | Yrd Mat Mat Slots Evolved 2 | . . 2 Power . | . . . Propulsion . | . . . Utility 1 | . . 1 Weapon 1 | . . 1 Parts Attached 25 | 7 12 6 Power 4 | 2 2 . Engine 4 | 2 2 . Core . | . . . Reactor . | . . . Propulsion 8 | 2 5 1 Treads . | . . . Leg 8 | 2 5 1 Wheel . | . . . Hover . | . . . Flight . | . . . Utility 5 | 1 2 2 Device 1 | . . 1 Storage 3 | 1 1 1 Processor . | . . . Hackware . | . . . Protection 1 | . 1 . Artifact . | . . . Weapon 8 | 2 3 3 Energy Gun 4 | 1 1 2 Energy Cannon 1 | . 1 . Ballistic Gun 3 | 1 1 1 Ballistic Cannon . | . . . Launcher . | . . . Special Weapon . | . . . Impact Weapon . | . . . Slashing Weapon . | . . . Piercing Weapon . | . . . Special Melee Weapon . | . . . Unidentified Prototypes . | . . . Parts Lost 11 | . 4 7 Power 2 | . 1 1 Propulsion 4 | . 1 3 Utility . | . . . Weapon 5 | . 2 3 Highest Loss Streak 5 | . 3 5 To Critical Strikes . | . . . Average Backups 5 | 1 4 7 Power . | . 1 1 Propulsion 2 | . 1 4 Utility . | . . . Weapon 2 | . 2 2 Tool/Special . | . . . Unused Backups 2 | . . 2 Power 1 | . . 1 Propulsion . | . . . Utility . | . . . Weapon 1 | . . 1 Tool/Special . | . . . Average Slot Usage (%) 85 | . 89 79 Engine 11 | . 12 7 Leg 23 | . 26 17 Device 3 | . . 9 Storage 12 | . 14 11 Protection 8 | . 7 11 Energy Gun 15 | . 19 8 Ballistic Gun 9 | . 7 13 Peak Build Rating 11 | 6 7 11 Average Rating 6 | 4 6 7 On Entrance 4 | . 6 7 Naked Turns . | . . . Heaviest Build 34 | 13 19 34 Greatest Support 20 | 20 20 20 Greatest Overweight (x) 8 | 3 1 8 Average Overweight (x) . | . . . Largest Inventory Capacity 15 | 8 10 15 Average Capacity 9 | 7 8 13 Most Carried 8 | 2 8 8 Average Carried 5 | 1 4 7 Final Capacity 15 | 8 10 15 Final Carried 8 | 2 7 8 Class Distribution -------------------- 64% | Mutant 26% | Scavenger-Mutant 9% | Scavenger-Tank Dominant Class ---------------- Mutant | -10/Materials Scavenger-Mutant | -9/Materials Resources | -11 -10 -9 ----------- Run | Yrd Mat Mat Matter Collected 498 | 239 156 103 Remotely . | . . . Salvage Created 631 | . 312 319 Parts 35 | . 15 20 Haulers Intercepted . | . . . Recyclers Shooed . | . . . Parts Field Recycled . | . . . Retrieved Matter . | . . . Parts Self-Destructed . | . . . Prevented . | . . . Kills | -11 -10 -9 ------- Run | Yrd Mat Mat Combat Hostiles Destroyed 18 | . 9 9 Guns 17 | . 8 9 Classes Destroyed 5 | . 2 3 Worker 1 | . . 1 Swarmer 5 | . 2 3 Grunt 11 | . 7 4 Brawler 1 | . . 1 Sentry 1 | . . 1 Best Kill Streak 8 | . 3 8 Combat Bots Only 7 | . 3 7 Max Kills in Single Turn 1 | . 1 1 Gunslinging . | . . . Exploded . | . . . Melee . | . . . Uniques/NPCs Destroyed . | . . . Combat | -11 -10 -9 -------- Run | Yrd Mat Mat Hostile Shots Fired 210 | . 97 113 Missed 48 | . 26 22 Hits 162 | . 71 91 Melee 2 | . . 2 Projectile 160 | . 71 89 Critical Strikes 2 | . 1 1 Damage Taken 1809 | . 838 971 Core 440 | . 246 194 Absorbed by Shields . | . . . Redirected to Shielding 47 | . 8 39 Core Remaining (%) 50 | 100 1 . Volleys Fired 96 | . 54 42 Largest 3 | . 2 3 Hottest 100 | . 100 99 Shots Fired 152 | . 80 72 Gun 152 | . 80 72 Cannon . | . . . Launcher . | . . . Special . | . . . Kinetic 81 | . 29 52 Thermal 71 | . 51 20 Explosive . | . . . Electromagnetic . | . . . Robot Hit Streak 13 | . 13 11 Robot Miss Streak 4 | . 3 4 Penetration Max . | . . . Secondary Targets 2 | . . 2 Max Gunslinging Chain 1 | . . 1 Shots Hit Robots 100 | . 54 46 Core Hits 37 | . 17 20 Critical Kills . | . . . Critical Parts Destroyed . | . . . Critical Strikes 3 | . 3 . Burn 3 | . 3 . Melee Attacks . | . . . Impact . | . . . Slashing . | . . . Piercing . | . . . Sneak Attacks . | . . . Combat Hostiles . | . . . Follow-up Attacks . | . . . Damage Inflicted 1085 | . 562 523 Guns 1085 | . 562 523 Cannons . | . . . Explosions . | . . . Melee . | . . . Ramming . | . . . Kinetic 527 | . 175 352 Thermal 558 | . 387 171 Explosive . | . . . Electromagnetic . | . . . Impact . | . . . Slashing . | . . . Piercing . | . . . Highest Corruption . | . . . Average Corruption . | . . . Corruption Purged . | . . . Corruption Blocked . | . . . Overload Shots . | . . . Overflow Damage . | . . . Projectiles . | . . . Explosions . | . . . Melee . | . . . Knockbacks . | . . . Impact . | . . . Kinetic . | . . . Secondary . | . . . Self-Inflicted Damage . | . . . Shots . | . . . Rammed . | . . . Targets Rammed . | . . . Kicked . | . . . Crushed . | . . . Highest Temperature 364 | . 364 298 Average Temperature 143 | . 135 162 Received Heat Transfer 753 | . 414 339 Effects 2 | . 2 . Energy Bleed 1 | . 1 . Interference 1 | . 1 . Siege Activations . | . . . Martial Activations . | . . . Shielding Activations . | . . . Robots Disrupted . | . . . Combat Hostiles . | . . . Robots Corrupted . | . . . Combat Hostiles . | . . . Parts Fried . | . . . Impact Corruptions . | . . . Robots Melted 1 | . 1 . Combat Hostiles 1 | . 1 . Parts Melted 6 | . 4 2 Heat Transferred 1778 | . 1369 409 Parts Sabotaged . | . . . Parts Stolen . | . . . Parts Stripped . | . . . Power Chain Reactions . | . . . Alert | -11 -10 -9 ------- Run | Yrd Mat Mat Maximum Alert Level . | . . . Low Security (%) 100 | 100 100 100 Level 1 . | . . . Level 2 . | . . . Level 3 . | . . . Level 4 . | . . . Level 5 . | . . . High Security . | . . . Max Security . | . . . Peak Influence 120 | . 120 84 Initial 26 | . . 26 Average 48 | . 61 33 Influence Increases 539 | . 310 229 Destroy 0b10 Robot/C 360 | . 180 180 Destroy 0b10 Robot/NC 5 | . . 5 Destroy Leader 80 | . 50 30 Successful Hack 19 | . 5 14 Lose Combat Pursuer 75 | . 75 . Influence Decreases 480 | . 247 233 Entered New Map 37 | . . 37 Time Decay 333 | . 207 126 Lost Part 110 | . 40 70 Squads Dispatched 2 | . 2 . Investigation 1 | . 1 . Extermination . | . . . Reinforcement 1 | . 1 . Assault . | . . . Garrison . | . . . Intercept . | . . . Searches Triggered . | . . . Construction Impeded . | . . . Haulers Reinforced . | . . . Active Scanning Responses . | . . . Cargo Convoy Interrupts . | . . . Stealth | -11 -10 -9 --------- Run | Yrd Mat Mat Distress Signals 3 | . 2 1 Communications Jammed . | . . . Distress Signals . | . . . Times Spotted 37 | . 20 17 Peak Tracking Total 8 | . 8 7 Tactical Retreats 3 | . 3 . Traps | -11 -10 -9 ------- Run | Yrd Mat Mat Traps Triggered 1 | . 1 . Indirectly . | . . . Trap Hack Attempts . | . . . Triggered . | . . . Disarmed . | . . . Reprogrammed . | . . . Reused . | . . . Traps Extracted . | . . . Installed . | . . . Triggered . | . . . Machines | -11 -10 -9 ---------- Run | Yrd Mat Mat Machines Disabled . | . . . Max in Single Turn . | . . . Machines Repaired . | . . . Machines Dismantled . | . . . Machines Sabotaged . | . . . Overloaded Fab Kills . | . . . Hacking | -11 -10 -9 --------- Run | Yrd Mat Mat Machines Accessed 3 | . 2 1 Terminals 3 | . 2 1 Fabricators . | . . . Repair Stations . | . . . Recycling Units . | . . . Scanalyzers . | . . . Garrison Access . | . . . Total Hacks 5 | . 4 1 Successful 2 | . 1 1 Failed 3 | . 3 . Catastrophic . | . . . Database Lockouts . | . . . Manual 5 | . 4 1 Terminals 5 | . 4 1 Fabricators . | . . . Repair Stations . | . . . Recycling Units . | . . . Scanalyzers . | . . . Garrison Access . | . . . Terminal Hacks . | . . . Fabricator Hacks . | . . . Repair Station Hacks . | . . . Recycling Unit Hacks . | . . . Scanalyzer . | . . . Garrison Access Hacks . | . . . Unauthorized Hacks 2 | . 1 1 Terminals 2 | . 1 1 Botnet 2 | . 1 1 Fabricators . | . . . Repair Stations . | . . . Recycling Units . | . . . Scanalyzers . | . . . Garrison Access . | . . . Data Cores Recovered . | . . . Used . | . . . Hacking Detections 2 | . 2 . Full Trace Events 1 | . 1 . Feedback Events . | . . . Feedback Blocked . | . . . Robot Schematics Acquired . | . . . Robots Built . | . . . Authchips . | . . . Time . | . . . Total Robot Build Rating . | . . . Part Schematics Acquired . | . . . Parts Built . | . . . Authchips . | . . . Time . | . . . Total Part Build Rating . | . . . Parts Repaired . | . . . Time . | . . . Parts Recycled . | . . . Recycled Matter . | . . . Retrieved Matter . | . . . Retrieved Components . | . . . Parts Scanalyzed . | . . . Part Schematics Acquired . | . . . Parts Damaged . | . . . Bothacking | -11 -10 -9 ------------ Run | Yrd Mat Mat Used RIF Installer . | . . . Robots Hacked . | . . . Non-combat . | . . . Combat . | . . . Robot Hacks Applied . | . . . Relay Couplers Released . | . . . Fabnet Peak Effective % . | . . . Robots Rewired . | . . . Allies Hacked . | . . . Hacks Repelled . | . . . Allies | -11 -10 -9 -------- Run | Yrd Mat Mat Total Allies . | . . . Largest Group . | . . . Highest-Rated Group . | . . . Highest-Rated Ally . | . . . Total Orders . | . . . Ally Attacks . | . . . Total Damage . | . . . Kills . | . . . Allies Corrupted . | . . . Allies Melted . | . . . Intel | -11 -10 -9 ------- Run | Yrd Mat Mat Active Infowar (turns) 292 | . . 292 Structural 292 | . . 292 Robot Analysis Total . | . . . Derelict Logs Recovered . | . . . Drone Launches . | . . . Drone Recoveries . | . . . Exploration | -11 -10 -9 ------------- Run | Yrd Mat Mat Turns Passed 944 | 64 566 314 Spaces Moved 500 | 43 332 125 Core 21 | 16 . 5 Treads . | . . . Legs 479 | 27 332 120 Wheels . | . . . Hover . | . . . Flight . | . . . Fastest Speed 50 | 50 120 120 Average Speed 132 | 122 121 165 Slowest Speed 450 | 200 190 450 Overloaded Moves . | . . . Propulsion Burnouts . | . . . Robots Hopped . | . . . Potential Cave-ins . | . . . Cave-ins Triggered . | . . . Exploration Rate (%) 24 | 4 51 17 Regions Visited 2 Branch Regions . Pre-discovered Areas . | . . . Known Exits Taken . | . . . Unknown Exits Taken 2 | 1 1 . Scrap Searched . | . . . Spaces Dug . | . . . Terrain Destroyed . | . . . Melee . | . . . Projectile . | . . . AOE . | . . . Terrain Rammed . | . . . Walls Destroyed . | . . . Machines Disabled . | . . . Actions | -11 -10 -9 --------- Run | Yrd Mat Mat Total 644 | 51 418 175 Wait 13 | . 13 . Move 498 | 42 331 125 Hop . | . . . Pick Up 6 | 2 4 . Fast Attach 13 | 5 3 5 Attach 4 | 1 3 . Detach 2 | . 1 1 Swap 8 | 1 6 1 Drop 4 | . 3 1 Fire 96 | . 54 42 Melee . | . . . Ram . | . . . Kick . | . . . Crush . | . . . Escape Stasis . | . . . Rewire . | . . . Trap . | . . . Miscellaneous . | . . . Route ------- -11/Scrapyard -10/Materials (discovered 2 exits: *Mat / [*Min]) -9/Materials (discovered 1 exit: [*Sto]) History --------- Turn | Location | Event 33 | -11/Scrapyard | Discovered new exit (range 16) 65 | -11/Scrapyard | Entered Materials 162 | -10/Materials | Discovered new exit (range 11) 246 | -10/Materials | Core integrity fell below 50% 262 | -10/Materials | Core integrity fell below 20% 272 | -10/Materials | Lost 3 parts (1p1n1w) 318 | -10/Materials | Build established: Mutant 609 | -10/Materials | Discovered new exit (range 5) 631 | -10/Materials | Entered another Materials area 631 | -9/Materials | Evolved 2 slots: Utility x1, Weapon x1 754 | -9/Materials | Discovered new exit (range 4) 901 | -9/Materials | Destroyed 7 combat bots 905 | -9/Materials | Lost 5 parts (1p2n2w) 945 | -9/Materials | Self-destructed Last Messages --------------- 00883_ R-06 Scavenger collects Aluminum Leg. 00884_ K-01 Serf collects debris. 00898_ Acquired Aluminum Leg. 00899_ K-01 Serf destroyed. 00900_ K-01 Serf collects debris. 00906_ W-16 Scout sends out distress signal. 00912_ K-01 Serf collects debris. 00915_ K-01 Serf cleans the Terminal. 00923_ Acquired Sml. Laser. 00924_ Lgt. Assault Rifle destroyed. 00926_ K-01 Serf collects debris. 00933_ K-01 Serf cleans the Fusion Modulator. 00933_ K-01 Serf collects debris. 00938_ Aluminum Leg destroyed. 00939_ Heat Sink melted. 00939_ Sml. Laser melted. 00939_ G-34 Mercenary destroyed. 00940_ C-30 ARC bursts open, deploying its payload. 00940_ S-10 Pest unfolds itself. 00940_ K-01 Serf collects debris. Map ----- +----------------------------------------------------+ | ?????????????????????????????????????????????????? | | ?????????????????????????????????????????????????? | | ?????????????????????????????????????????????????? | | ?????????????????????????????????????????????????? | | ?????????????????????????????????????????????????? | | ?????????????????????????????????????????????????? | | ?????????????????????????????????????????????????? | | ?????????????????????????????????????????????????? | | ?????????????????????????????????????????????????? | | ?????????????????????????? # ??????????????????? | | ????????????????????????## + ??????????????????? | | ????????????????????????## # # ????????????? | | ????????????????????????## ########????????????? | | ????????????????????????## ????????????? | | ????????????????????????## u ?????????????? | | ???????????????????????? # ?????????????? | | ???????????????????????? # ^ ^ ? ?????????? | | ???????????????????????? #a ^""" ""?????????? | | ???????????????????????? # """ ""?????????? | | ?????????????## ???????? + "T" """ """????????? | | ????????????### ???????? # """ k ???????? | | ??????????##### ?######## ?????????? | | ??????????#### #######=g%= a ????????????? | | ?????????? %* ##????????## # | | ???????????? T k %sss##????????## # | | ?????????? @!%%s% ############ # | | ????????????## ###+####+### ############ # | | ????????????####??## =%[## ### !] # # | | ????????????####??## =%*=## ### !! "# # | | ??????????????????## ## ### ]! "# # | | ??????????????????## ## ### "# # | | ??????????????????## ## ### T# # | | ??????????????????## # ## """ "# | | ??????????????????## # <% + """ "# | | ??????????????????## # ## """ "# | | ??????????????????############# ### # | | ??????????????????############# ########+### | | ?????????????????????????????## ####! | | ?????????????????????????????## ###! | | ?????????????????????????????## ###! | | ?????????????????????????????## ###! ##+#####+## | | ?????????????????????????????## ###! # # | | ?????????????????????????????## ####! # ????? # | | ?????????????????????????????## ####### ???? # | | ??????????????????????????????? ??##### ???? # | | ??????????????????????????????? ?????## ??? # | | ??????????????????????????????? ?????## ??? # | | ??????????????????????????????? ?????## ?? # | | ??????????????????????????????? ?????## # | | ??????????????????????????????? ?????############ | +----------------------------------------------------+ Best States ------------- Heat Dissipation 28 Energy Generation 10 Energy Capacity 250 Matter Stores 300 Matter Capacity 300 Sight Range 16 Terrain Scan Density 10 Core Shielding 20 Evasion (%) 55 Item Schematics ----------------- None Robot Schematics ------------------ None Fabricated ------------ Nothing Repaired ---------- Nothing Alien Tech Used ----------------- None Achievements -------------- None Challenges ------------ None Game ------ Seed GlidesysGunArticulator Manual? 0 Play Time 00:08:37 Cumulative 24.8 hours Start 2025.05.08 @ 22:53:43 End 2025.05.08 @ 23:03:18 Sessions 1 Manual Loads 0 Difficulty Rogue Special Mode None Game No. 54 Rogue 54 Adventurer 0 Explorer 0 Win Type - Total 0 Types 0/0/0/0/0/0/0/0/0/0 Lore% 10 Gallery% 14 Achievement% 16 Wizard Run 0 Options --------- Layout 0 ASCII 0 Keyboard 1 Movement Numpad Keybinds 0 Fullscreen 1 Font 24/Smallcaps Map View 76x50 Zoom Use 0% Tactical HUD 1 Map Filters NONE Filters NONE Steam 1 RUN: 051007c3-caf0-431d-a7b3-69581fa3c476